fUST/lending_fUST_20260326
["ID","MTS","AMOUNT","RATE_DAILY","PERIOD"]
[2046,1774455046323,-59007.0358432,0.00025,5]
[2048,1774455046341,-150.0,0.00025,2]
[2050,1774455046359,-300.0,0.00025,10]
[2052,1774455046377,-593.56552995,0.00025,2]
[2055,1774455046405,-501.48822469,0.00025,2]
[2057,1774455046423,-585.82517768,0.000252,5]
[2059,1774455046442,-500.0,0.00025205,4]
[2089,1774456238537,-369.12,0.00025444,2]
[2113,1774456246777,-122246.80319403,0.00025444,2]
[2117,1774457432627,-551.668,0.00025444,2]
[2197,1774458640444,-567.76,5e-05,2]
[2198,1774458640457,-1324.35278009,5e-05,2]
[2199,1774458640466,-8044.40112125,0.000125,2]
[2203,1774458642998,-335.44404759,0.000125,2]
[2204,1774458643008,-312.88595241,0.00025444,2]
[2205,1774458643155,-1609.90859807,0.00025444,2]
[2206,1774458643166,-911.91340463,0.00025444,2]
[2214,1774458645818,-6077.5274628,0.00025444,2]
[2215,1774458645872,-3539.45043481,0.00025444,2]
[2216,1774458646084,-25410.60522584,0.00025444,2]
[2233,1774459838162,-49313.12248185,0.00025444,2]
[2234,1774459838174,-3686.12324199,0.00025444,2]
[2235,1774459838186,-1359.0,0.00025444,2]
[2239,1774459840615,-567.76,0.00025444,2]
[2246,1774459843238,-25791.57194387,0.00025444,2]
[2247,1774459843399,-2280.80767881,0.00025444,2]
[2248,1774459846087,-29205.1375522,0.00025444,2]
[2251,1774459846142,-17980.02692572,0.00025444,2]
[2258,1774461038496,-37992.9635645,0.00025444,2]
[2263,1774461040865,-747.202766,0.00025444,2]
[2280,1774461046348,-5000.0,0.00025444,2]
[2290,1774462232441,-567.76,5e-05,2]
[2291,1774462232450,-5433.56,0.000102,5]
[2292,1774462232462,-14056.40162397,0.000102,5]
[2293,1774462232473,-385.62657653,0.000102,5]
[2294,1774462238455,-259.03441584,0.000102,5]
[2295,1774462238465,-3360.80267012,0.000125,2]
[2296,1774462238474,-1933.17204536,0.00017,2]
[2297,1774462238486,-378.3118428,0.00017,2]
[2298,1774462238564,-3495.8960503,0.00017,2]
[2299,1774462238617,-902.07904197,0.00017,2]
[2333,1774462244001,-24698.48440651,0.00017,2]
[2334,1774462244016,-1625.79918937,0.00017,2]
[2335,1774462244028,-79384.65731902,0.00017,2]
[2336,1774462244038,-20313.14305763,0.00019,2]
[2337,1774462244050,-568.33260725,0.00019,2]
[2338,1774462244062,-841.34677447,0.00019,2]
[2346,1774462246749,-2904.81783956,0.00019,2]
[2347,1774462246760,-12114.34752585,0.000233,2]
[2348,1774463432631,-4175.23789516,0.000233,2]
[2349,1774463432643,-612.45539063,0.000233,2]
[2358,1774463438777,-2923.86707462,0.000233,2]
[2359,1774463438788,-19424.33546442,0.000233,2]
[2360,1774463438799,-536.9198889,0.000233,2]
[2368,1774464632017,-35747.62609499,0.000233,2]
[2369,1774464632031,-2334.10422389,0.000233,2]
[2376,1774464638021,-22174.88044353,0.000233,2]
[2377,1774464638032,-859139.47530818,0.00025444,2]
[2378,1774464638046,-50551.42,0.00025444,2]
[2379,1774464638071,-906277.88814821,0.00025444,2]
[2380,1774464638082,-5500.0,0.00025452,2]
[2381,1774464638092,-900.0,0.00025469,3]
[2382,1774464638103,-237.15953672,0.00025475,120]
[2383,1774464638112,-625.64,0.00025479,4]
[2384,1774464638122,-500.0,0.00025479,4]
[2385,1774464638132,-2326.3,0.00025479,4]
[2386,1774464638144,-4056.23,0.00025479,4]
[2387,1774464638156,-839.98,0.00025479,4]
[2388,1774464638167,-5944.44,0.00025479,4]
[2389,1774464638177,-1030.96,0.00025479,4]
[2390,1774464638189,-1000.0,0.000255,2]
[2391,1774464638198,-270.83333333,0.000255,7]
[2392,1774464638207,-593.56552995,0.000255,2]
[2393,1774464638219,-150.03,0.00025526,2]
[2394,1774464638228,-198.53445863,0.00025633,2]
[2395,1774464638238,-625.64,0.00025753,4]
[2396,1774464638248,-500.0,0.00025753,4]
[2397,1774464638257,-2326.3,0.00025753,4]
[2398,1774464638269,-4056.23,0.00025753,4]
[2399,1774464638280,-839.98,0.00025753,4]
[2400,1774464638291,-5944.44,0.00025753,4]
[2401,1774464638300,-1030.96,0.00025753,4]
[2402,1774464638310,-219.0,0.00025781,18]
[2403,1774464638319,-593.56552995,0.000258,2]
[2404,1774464638328,-1317.0,0.000259,2]
[2405,1774464638337,-438.12603674,0.000259,2]
[2406,1774464638346,-533.27853224,0.00026,2]
[2407,1774464638356,-161.0,0.00026,5]
[2408,1774464638365,-1000.0,0.00026,6]
[2409,1774464638374,-593.56552995,0.00026,2]
[2410,1774464638383,-1029.0,0.00026,2]
[2411,1774464638392,-1735.16501828,0.00026,30]
[2412,1774464638401,-6000.0,0.00026,2]
[2413,1774464638411,-625.64,0.00026027,4]
[2414,1774464638420,-500.0,0.00026027,4]
[2415,1774464638429,-2326.3,0.00026027,4]
[2416,1774464638438,-4056.23,0.00026027,4]
[2417,1774464638447,-839.98,0.00026027,4]
[2418,1774464638456,-5944.44,0.00026027,4]
[2419,1774464638466,-1030.96,0.00026027,4]
[2420,1774464638475,-195.9013529,0.0002616,2]
[2421,1774464638484,-625.64,0.00026301,4]
[2422,1774464638493,-500.0,0.00026301,4]
[2423,1774464638502,-2326.3,0.00026301,4]
[2424,1774464638511,-4056.23,0.00026301,4]
[2425,1774464638520,-839.98,0.00026301,4]
[2426,1774464638530,-5944.44,0.00026301,4]
[2427,1774464638539,-1030.96,0.00026301,4]
[2428,1774464638548,-6500.0,0.00026548,2]
[2429,1774464638557,-625.64,0.00026575,4]
[2430,1774464638566,-500.0,0.00026575,4]
[2431,1774464638576,-2326.3,0.00026575,4]
[2432,1774464638585,-4056.23,0.00026575,4]
[2433,1774464638595,-839.98,0.00026575,4]
[2434,1774464638604,-5944.44,0.00026575,4]
[2435,1774464638614,-1030.96,0.00026575,4]
[2436,1774464638623,-201.0,0.0002675,9]
[2437,1774464638632,-625.64,0.00026849,4]
[2438,1774464638642,-500.0,0.00026849,4]
[2439,1774464638651,-2326.3,0.00026849,4]
[2440,1774464638661,-4056.23,0.00026849,4]
[2441,1774464638670,-839.98,0.00026849,4]
[2442,1774464638679,-5944.44,0.00026849,4]
[2443,1774464638689,-1030.96,0.00026849,4]
[2444,1774464638698,-1317.0,0.000269,2]
[2445,1774464638707,-777.0,0.00027,6]
[2446,1774464638717,-1029.0,0.00027,2]
[2447,1774464638726,-4937.56031488,0.00027096,2]
[2448,1774464638735,-625.64,0.00027123,4]
[2449,1774464638745,-500.0,0.00027123,4]
[2450,1774464638755,-2326.3,0.00027123,4]
[2451,1774464638764,-4056.23,0.00027123,4]
[2452,1774464638773,-839.98,0.00027123,4]
[2453,1774464638783,-5944.44,0.00027123,4]
[2454,1774464638792,-1030.96,0.00027123,4]
[2455,1774464638802,-150.0,0.0002739,2]
[2456,1774464638811,-625.64,0.00027397,4]
[2457,1774464638821,-901.89585267,0.00027397,2]
[2458,1774464638830,-500.0,0.00027397,4]
[2459,1774464638840,-2326.3,0.00027397,4]
[2460,1774464638850,-4056.23,0.00027397,4]
[2461,1774464638859,-839.98,0.00027397,4]
[2462,1774464638868,-5944.44,0.00027397,4]
[2463,1774464638877,-1030.96,0.00027397,4]
[2464,1774464638887,-226.95624779,0.00027397,2]
[2465,1774464638896,-158.86937345,0.00027397,2]
[2466,1774464638905,-441.757959,0.00027397,2]
[2467,1774464638914,-441.757959,0.00027397,2]
[2468,1774464638934,-441.757959,0.00027397,2]
[2469,1774464639012,-441.757959,0.00027397,2]
[2470,1774464639023,-441.757959,0.00027397,2]
[2471,1774464639032,-441.757959,0.00027397,2]
[2472,1774464639041,-441.757959,0.00027397,2]
[2473,1774464639050,-441.757959,0.00027397,2]
[2474,1774464639060,-441.757959,0.00027397,2]
[2475,1774464639069,-441.757959,0.00027397,2]
[2476,1774464639078,-441.757959,0.00027397,2]
[2737,1774464646087,-26361.21744817,0.00027444,2]
[2744,1774465832297,-334.45923056,0.000102,5]
[2745,1774465832308,-515.6773213,0.000102,5]
[2746,1774465832335,-4138.56881286,0.000102,5]
[2747,1774465832347,-1280.11762686,0.000102,5]
[2762,1774465838217,-5000.0,0.000102,5]
[2763,1774465838230,-48787.60647173,0.000102,5]
[2764,1774465838239,-356.42577329,0.00015,2]
[2765,1774465838248,-150.06790827,0.000198,2]
[2766,1774465838258,-14810.99203427,0.0002,2]
[2767,1774465838268,-266.58647646,0.0002,7]
[2768,1774465838277,-23000.0,0.0002,2]
[2769,1774465838286,-600.58390439,0.0002,2]
[2770,1774465838295,-33139.78595911,0.0002,2]
[2771,1774465838322,-979257.99647481,0.0002,2]
[2772,1774465838331,-10000.0,0.0002,2]
[2773,1774465838340,-6000.0,0.00021,2]
[2774,1774465838349,-50000.0,0.00021,2]
[2775,1774465838358,-12957.10580216,0.000215,2]
[2776,1774465838367,-499.99999801,0.00022,2]
[2777,1774465838376,-138959.45309985,0.0002465,2]
[2778,1774465838386,-779042.94082785,0.00027444,2]
[2796,1774465846374,-4777.72337303,0.00027444,2]
[2797,1774465846386,-413.28111566,0.00027444,2]
[2798,1774465846397,-2329.18508868,0.00027444,2]
[2799,1774467032418,-5009.21249888,0.00027444,2]
[2800,1774467032436,-89363.18838952,0.00027444,2]
[2801,1774467032448,-4241.16229883,0.00027444,2]
[2802,1774467032459,-490.57899851,0.00027444,2]
[2818,1774467041055,-1468.4,0.00027444,2]
[2821,1774467041176,-604.0,0.00027444,2]
[2822,1774467043776,-250.820863,0.00027444,2]
[2835,1774467046524,-106168.09127718,0.00027444,2]
[2839,1774468232677,-853.624,0.00027444,2]
[2840,1774468232688,-4091.09591491,0.00027444,2]
[2841,1774468232699,-2584.1533961,0.00027444,2]
[2842,1774468232710,-14492.47668541,0.00027444,2]
[2852,1774468238788,-19384.34066988,0.00027444,2]
[2864,1774468246882,-158419.29935768,0.00027444,2]
[2869,1774469431933,-283.624,0.0002,2]
[2870,1774469431944,-284.79628156,0.0002,2]
[2887,1774469438073,-431.87462275,0.0002,2]
[2888,1774469438084,-1320.37972324,0.0002,2]
[2897,1774469443301,-14291.12450927,0.0002,2]
[2902,1774469446413,-610.66231225,0.0002,2]
[2906,1774470632149,-1580.26245559,0.0002,2]
[2908,1774470632160,-25282.0573144,0.0002,2]
[2909,1774470632172,-3093.05945852,0.0002,2]
[2916,1774470638231,-747.13445252,0.0002,2]
[2917,1774470638288,-420.63902269,0.0002,2]
[2918,1774470638300,-428.47,0.0002,2]
[2919,1774470638312,-52006.45566602,0.0002,2]
[2921,1774470640763,-7112.75941948,0.0002,2]
[2922,1774470643570,-585.97660249,0.0002,2]
[2923,1774470643582,-7374.82932665,0.0002,2]
[2924,1774470643594,-65465.46831963,0.0002,2]
[2925,1774470643603,-58618.3092653,0.00027444,2]
[2926,1774470643614,-43966.37526459,0.00027444,2]
[2927,1774470643627,-1994.81770619,0.00027444,2]
[2930,1774470646223,-8699.29472078,0.00027444,2]
[2931,1774470646333,-638.29172964,0.00027444,2]
[2934,1774471832336,-20569.66549761,0.00027444,2]
[2935,1774471832348,-5000.0,0.00027444,2]
[2936,1774471832359,-305.668248,0.00027444,2]
[2937,1774471832370,-677.26267608,0.00027444,2]
[2951,1774471838434,-370697.74538425,0.00027444,2]
[2952,1774471838446,-784751.1362629,0.00027444,2]
[2953,1774471838455,-46254.37710335,0.000275,2]
[2954,1774471838464,-625.64,0.00027671,4]
[2955,1774471838473,-500.0,0.00027671,4]
[2956,1774471838482,-2326.3,0.00027671,4]
[2957,1774471838491,-4056.23,0.00027671,4]
[2958,1774471838501,-839.98,0.00027671,4]
[2959,1774471838510,-5944.44,0.00027671,4]
[2960,1774471838520,-1030.96,0.00027671,4]
[2961,1774471838529,-500.0,0.00027791,2]
[2962,1774471838539,-1317.0,0.000279,2]
[2963,1774471838548,-625.64,0.00027945,4]
[2964,1774471838557,-500.0,0.00027945,4]
[2965,1774471838566,-2326.3,0.00027945,4]
[2966,1774471838575,-4056.23,0.00027945,4]
[2968,1774471838584,-839.98,0.00027945,4]
[2969,1774471838593,-5944.44,0.00027945,4]
[2970,1774471838603,-1030.96,0.00027945,4]
[2971,1774471838651,-1000.97761365,0.00028,20]
[2972,1774471838663,-300.0,0.00028,14]
[2973,1774471838672,-1000.0,0.00028,6]
[2974,1774471838681,-7000.0,0.00028,2]
[2975,1774471838691,-1029.0,0.00028,2]
[2976,1774471838700,-2844.194202,0.00028,2]
[2977,1774471838709,-107319.17042905,0.00028,2]
[2978,1774471838718,-184.0,0.00028017,2]
[2979,1774471838727,-150.03,0.00028079,2]
[2980,1774471838736,-500.0,0.00028184,2]
[2981,1774471838745,-151.0,0.00028219,2]
[2982,1774471838755,-625.801369,0.00028219,4]
[2983,1774471838764,-250.72198089,0.00028219,4]
[2984,1774471838773,-2326.42623817,0.00028219,4]
[2985,1774471838783,-4056.37161407,0.00028219,4]
[2986,1774471838792,-840.04,0.00028219,4]
[2987,1774471838801,-5944.56770637,0.00028219,4]
[2988,1774471838810,-1031.06359962,0.00028219,4]
[2989,1774471838820,-454.9280236,0.00028267,2]
[2990,1774471838829,-155.0,0.00028409,30]
[2991,1774471838838,-430.0,0.00028409,30]
[2992,1774471838847,-192.0,0.00028409,30]
[2993,1774471838856,-1500.0,0.000285,2]
[2994,1774471838865,-157.0,0.00028521,29]
[2995,1774471838875,-4551.17958125,0.00028562,98]
[2996,1774471838884,-500.0,0.00028577,2]
[2997,1774471838893,-182.21,0.000286,10]
[2998,1774471838902,-25038.8284354,0.0002876,2]
[2999,1774471838911,-1317.0,0.000289,2]
[3000,1774471838920,-151.0,0.00028904,3]
[3001,1774471838930,-500.0,0.00028971,2]
[3002,1774471838939,-896.51887661,0.00029,2]
[3003,1774471838948,-300.0,0.00029,14]
[3004,1774471838957,-700.6,0.00029,5]
[3005,1774471838967,-2523.33,0.00029,5]
[3006,1774471838977,-1029.0,0.00029,2]
[3007,1774471838987,-1500.0,0.00029,2]
[3008,1774471838996,-500.0,0.00029364,2]
[3009,1774471839005,-155.0,0.00029409,30]
[3010,1774471839014,-430.0,0.00029409,30]
[3011,1774471839024,-192.0,0.00029409,30]
[3012,1774471839033,-889473.40747469,0.00029444,2]
[3023,1774471840989,-814.419644,0.00029444,2]
[3025,1774471843691,-488.57025586,0.00029444,2]
[3026,1774471843703,-1735.293465,0.00029444,2]
[3027,1774471843785,-380.183,0.00029444,2]
[3042,1774473032573,-1410.83091649,5e-05,2]
[3062,1774473038713,-4889.87501897,5e-05,2]
[3063,1774473038723,-16143.18402217,0.0002,2]
[3064,1774473038785,-23726.50774562,0.0002,2]
[3065,1774473038797,-231117.04837793,0.0002,2]
[3066,1774473038807,-41953.04648683,0.000211,2]
[3067,1774473038819,-17438.9396572,0.0002465,2]
[3068,1774473038829,-10563.96347347,0.00025,2]
[3069,1774473038839,-10364.0,0.00025,2]
[3070,1774473038848,-7194.36154275,0.00025,2]
[3071,1774473038859,-23768.109426,0.00026,30]
[3072,1774473038869,-19900.0,0.00026,2]
[3073,1774473038879,-1147112.02468141,0.00029444,2]
[3091,1774474232051,-433.45811007,0.00029444,2]
[3092,1774474232066,-673.65800602,0.00029444,2]
[3097,1774474237825,-1666.4134488,0.00029444,2]
[3098,1774474237839,-40101.74961497,0.00029444,2]
[3099,1774474237854,-143785.23044549,0.00029444,2]
[3100,1774474240460,-1200.13926805,0.00029444,2]
[3101,1774474240474,-587.0,0.00029444,2]
[3105,1774474243337,-300.0,0.00029444,2]
[3106,1774474243349,-2710.88604819,0.00029444,2]
[3109,1774474243360,-1540.817128,0.00029444,2]
[3111,1774474243371,-1891.0220345,0.00029444,2]
[3113,1774474243382,-352.86948732,0.00029444,2]
[3135,1774474245894,-12490.123765,0.00029444,2]
[3136,1774474245956,-796.3799828,0.00029444,2]
[3137,1774474246017,-11461.53119502,0.00029444,2]
[3182,1774475443479,-17107.50246209,0.00029444,2]
[3189,1774475443514,-540.35826114,0.00029444,2]
[3413,1774475446196,-7452.33201046,0.00029444,2]
[3414,1774475446482,-610.99505787,0.00029444,2]
[3416,1774475446502,-805.98,0.000295,10]
[3419,1774475446530,-151.0,0.00029589,4]
[3420,1774475446539,-200.0,0.00029616,35]
[3422,1774475446557,-1317.0,0.000299,2]
[3457,1774476638504,-2500.0,0.0003,7]
[3458,1774476638513,-2537.0,0.0003,10]
[3461,1774476638547,-4900.35675187,0.0003,2]
[3463,1774476638567,-1029.0,0.0003,7]
[3465,1774476638587,-110564.98131464,0.0003,30]
[3467,1774476638607,-150.0,0.0003013,2]
[3469,1774476638616,-506.42352343,0.0003013,2]
[3471,1774476638637,-500.0,0.00030151,2]
[3473,1774476638656,-151.0,0.00030273,5]
[3475,1774476638678,-430.0,0.00030409,30]
[3477,1774476638698,-500.0,0.00030544,2]
[3479,1774476638769,-1825.0,0.000309,120]
[3481,1774476638790,-151.0,0.00030958,6]
[3483,1774476638811,-488.83319024,0.00031,2]
[3485,1774476638831,-212.0,0.0003126,45]
[3487,1774476638852,-1534085.74940788,0.00031387,2]
[3489,1774476638876,-92290.55422354,0.00031387,2]
[3497,1774476641013,-689.93964682,0.00031387,2]
[3501,1774476643610,-771.14628782,0.00031387,2]
[3503,1774476643633,-41817.92464181,0.00031387,2]
[3505,1774476643655,-30302.65137607,0.00031387,2]
[3507,1774476643677,-1283.82286199,0.00031387,2]
[3509,1774476643700,-274.6353357,0.00031387,2]
[3511,1774476643722,-185118.28504538,0.00031387,2]
[3513,1774476643745,-361.0,0.00031387,2]
[3531,1774477214956,5000.0,7.6e-05,120]
[3553,1774477237322,5000.0,7.6e-05,120]
[3561,1774477245032,5000.0,7.6e-05,120]
[3992,1774477841143,-603.519,6.046e-05,2]
[3994,1774477841208,-4396.481,6.046e-05,2]
[3995,1774477841218,-300.0,6.107e-05,2]
[3996,1774477841228,-1200.0,6.107e-05,2]
[3997,1774477841237,-1248.819,6.108e-05,2]
[4020,1774477841665,-3751.181,6.108e-05,2]
[4022,1774477841674,-508.0,6.108e-05,2]
[4024,1774477841684,-5000.0,6.17e-05,2]
[4026,1774477841693,-300.0,6.231e-05,2]
[4028,1774477841702,-300.0,6.231e-05,2]
[4030,1774477841711,-300.0,6.231e-05,2]
[4032,1774477841720,-300.0,6.231e-05,2]
[4034,1774477841730,-1200.0,6.293e-05,2]
[4036,1774477841739,-2196.3900541,6.359e-05,2]
[4038,1774477841748,-300.0,6.657e-05,2]
[4061,1774477841863,-300.0,6.789e-05,2]
[4063,1774477841873,-300.0,6.789e-05,2]
[4065,1774477841882,-300.0,6.789e-05,2]
[4068,1774477841891,-300.0,6.789e-05,2]
[4070,1774477841901,-300.0,6.789e-05,2]
[4075,1774477841942,-300.0,6.789e-05,2]
[4077,1774477841951,-420.0,6.854e-05,2]
[4079,1774477841960,-420.0,6.854e-05,2]
[4081,1774477841969,-300.0,6.854e-05,2]
[4083,1774477841978,-420.0,6.854e-05,2]
[4085,1774477841987,-1680.0,6.922e-05,2]
[4087,1774477841996,-587.0,7.389e-05,2]
[4089,1774477842005,-2351.0,7.389e-05,2]
[4091,1774477842014,-1106.3935368,7.473e-05,2]
[4093,1774477842023,-568.61876128,7.473e-05,2]
[4095,1774477842032,-587.0,7.54e-05,2]
[4097,1774477842042,-587.0,7.54e-05,2]
[4099,1774477842051,-587.0,7.54e-05,2]
[4101,1774477842060,-500.0,7.573e-05,2]
[4102,1774477842069,-500.0,7.573e-05,2]
[4104,1774477842079,-500.0,7.573e-05,2]
[4106,1774477842088,-500.0,7.573e-05,2]
[4108,1774477842098,-500.0,7.573e-05,2]
[4110,1774477842107,-500.0,7.573e-05,2]
[4113,1774477842117,-500.0,7.573e-05,2]
[4115,1774477842127,-500.0,7.573e-05,2]
[4116,1774477842136,-404.11854725,7.573e-05,2]
[4118,1774477842145,-500.0,7.573e-05,2]
[4120,1774477842155,-976.654623,7.6e-05,2]
[4122,1774477842164,-2351.0,7.615e-05,2]
[4124,1774477842173,-600.0,7.723e-05,2]
[4126,1774477842183,-637.83273115,7.98e-05,2]
[4129,1774477842193,-500.0,8.073e-05,2]
[4130,1774477842202,-500.0,8.073e-05,2]
[4132,1774477842213,-500.91790075,8.073e-05,2]
[4135,1774477842223,-500.0,8.073e-05,2]
[4137,1774477842232,-500.0,8.073e-05,2]
[4139,1774477842242,-500.0,8.073e-05,2]
[4141,1774477842251,-500.0,8.073e-05,2]
[4143,1774477842260,-500.0,8.073e-05,2]
[4145,1774477842270,-500.0,8.073e-05,2]
[4147,1774477842280,-500.0,8.073e-05,2]
[4149,1774477842289,-500.29013181,8.073e-05,2]
[4151,1774477842299,-500.0,8.073e-05,2]
[4153,1774477842309,-500.0,8.073e-05,2]
[4155,1774477842320,-500.0,8.091e-05,2]
[4156,1774477842329,-500.0,8.091e-05,2]
[4158,1774477842338,-500.0,8.091e-05,2]
[4161,1774477842348,-500.0,8.091e-05,2]
[4163,1774477842357,-335.05411608,8.091e-05,2]
[4164,1774477842367,-218.81762816,8.091e-05,2]
[4166,1774477842377,-500.0,8.091e-05,2]
[4168,1774477842386,-500.0,8.091e-05,2]
[4171,1774477842397,-500.0,8.091e-05,2]
[4172,1774477842406,-500.0,8.091e-05,2]
[4174,1774477842417,-500.0,8.091e-05,2]
[4177,1774477842426,-500.0,8.091e-05,2]
[4179,1774477842439,-115.74956985,8.091e-05,2]
[4188,1774477842600,-384.25043015,8.091e-05,2]
[4189,1774477842617,-29.81036788,8.091e-05,2]
[4190,1774477842641,-470.18963212,8.091e-05,2]
[4191,1774477842660,-67.3103679,8.091e-05,2]
[4192,1774477842686,-432.6896321,8.091e-05,2]
[4193,1774477842703,-500.0,8.091e-05,2]
[4194,1774477842721,-417.37717431,8.091e-05,2]
[4195,1774477842741,-500.0,8.091e-05,2]
[4196,1774477842756,-500.0,8.091e-05,2]
[4197,1774477842773,-500.0,8.091e-05,2]
[4198,1774477842790,-500.0,8.091e-05,2]
[4199,1774477842807,-500.0,8.091e-05,2]
[4200,1774477842823,-500.0,8.091e-05,2]
[4201,1774477842837,-500.0,8.091e-05,2]
[4202,1774477842851,-500.0,8.091e-05,2]
[4203,1774477842865,-500.0,8.091e-05,2]
[4204,1774477842879,-500.0,8.091e-05,2]
[4205,1774477842893,-500.0,8.091e-05,2]
[4206,1774477842907,-500.0,8.091e-05,2]
[4207,1774477842922,-500.0,8.091e-05,2]
[4208,1774477842936,-1.79914142,8.091e-05,2]
[4211,1774477842955,-498.20085858,8.091e-05,2]
[4212,1774477842969,-289.06003373,8.091e-05,2]
[4213,1774477843029,-500.0,8.091e-05,2]
[4214,1774477843039,-500.0,8.091e-05,2]
[4215,1774477843050,-500.0,8.091e-05,2]
[4216,1774477843060,-500.0,8.091e-05,2]
[4217,1774477843069,-500.0,8.091e-05,2]
[4218,1774477843080,-500.0,8.091e-05,2]
[4219,1774477843089,-500.0,8.091e-05,2]
[4220,1774477843100,-500.0,8.091e-05,2]
[4221,1774477843110,-500.0,8.091e-05,2]
[4222,1774477843120,-500.0,8.091e-05,2]
[4223,1774477843130,-500.0,8.091e-05,2]
[4224,1774477843140,-500.0,8.091e-05,2]
[4225,1774477843150,-469.54371469,8.091e-05,2]
[4226,1774477843161,-500.0,8.091e-05,2]
[4227,1774477843172,-500.0,8.091e-05,2]
[4228,1774477843182,-500.0,8.091e-05,2]
[4229,1774477843192,-431.41069955,8.091e-05,2]
[4276,1774477844337,-68.58930045,8.091e-05,2]
[4277,1774477844348,-500.0,8.091e-05,2]
[4278,1774477844358,-500.0,8.091e-05,2]
[4279,1774477844369,-500.0,8.091e-05,2]
[4280,1774477844380,-170.40694899,8.091e-05,2]
[4284,1774477847296,-329.59305101,8.091e-05,2]
[4285,1774477847309,-543.8308325,8.091e-05,2]
[4286,1774477847319,-543.8308325,8.091e-05,2]
[4287,1774477847329,-543.8308325,8.091e-05,2]
[4288,1774477847340,-543.8308325,8.091e-05,2]
[4289,1774477847353,-543.8308325,8.091e-05,2]
[4290,1774477847364,-543.8308325,8.091e-05,2]
[4291,1774477847381,-543.8308325,8.091e-05,2]
[4292,1774477847391,-543.8308325,8.091e-05,2]
[4293,1774477847402,-543.8308325,8.091e-05,2]
[4294,1774477847412,-543.8308325,8.091e-05,2]
[4295,1774477847423,-543.8308325,8.091e-05,2]
[4296,1774477847433,-543.8308325,8.091e-05,2]
[4297,1774477847444,-543.8308325,8.091e-05,2]
[4298,1774477847454,-543.8308325,8.091e-05,2]
[4299,1774477847463,-543.8308325,8.091e-05,2]
[4300,1774477847473,-543.8308325,8.091e-05,2]
[4301,1774477847483,-543.8308325,8.091e-05,2]
[4302,1774477847493,-543.8308325,8.091e-05,2]
[4303,1774477847503,-543.8308325,8.091e-05,2]
[4304,1774477847513,-543.8308325,8.091e-05,2]
[4305,1774477847553,-543.8308325,8.091e-05,2]
[4306,1774477847568,-543.8308325,8.091e-05,2]
[4307,1774477847579,-543.8308325,8.091e-05,2]
[4308,1774477847589,-543.8308325,8.091e-05,2]
[4309,1774477847600,-543.8308325,8.091e-05,2]
[4310,1774477847610,-543.8308325,8.091e-05,2]
[4311,1774477847620,-543.8308325,8.091e-05,2]
[4312,1774477847630,-543.8308325,8.091e-05,2]
[4313,1774477847641,-543.8308325,8.091e-05,2]
[4314,1774477847651,-543.8308325,8.091e-05,2]